fUST/lending_fUST_20260114
["ID","MTS","AMOUNT","RATE_DAILY","PERIOD"]
[401912590,1768403432159,-500.0,0.00012326,2]
[401912592,1768403432168,-500.0,0.00012326,2]
[401912594,1768403432176,-500.0,0.00012326,2]
[401912596,1768403432185,-500.0,0.00012326,2]
[401912598,1768403432194,-500.0,0.00012326,2]
[401912600,1768403432203,-500.0,0.00012326,2]
[401912602,1768403432212,-500.0,0.00012326,2]
[401912604,1768403432223,-399.50559126,0.00012326,2]
[401912606,1768403432233,-500.0,0.00012326,2]
[401912608,1768403432242,-500.0,0.00012326,2]
[401912610,1768403432251,-500.0,0.00012326,2]
[401912611,1768403432261,-500.0,0.00012326,2]
[401912613,1768403432270,-500.0,0.00012326,2]
[401912615,1768403432279,-500.0,0.00012326,2]
[401912617,1768403432289,-500.0,0.00012326,2]
[401912619,1768403432298,-500.0,0.00012326,2]
[401912621,1768403432307,-500.0,0.00012326,2]
[401912623,1768403432316,-500.0,0.00012326,2]
[401912625,1768403432327,-500.0,0.00012326,2]
[401912627,1768403432340,-500.0,0.00012326,2]
[401912629,1768403432350,-321.22292381,0.00012326,2]
[401912630,1768403432361,-500.0,0.00012326,2]
[401912632,1768403432371,-500.0,0.00012326,2]
[401912633,1768403432381,-500.0,0.00012326,2]
[401912635,1768403432390,-500.0,0.00012326,2]
[401912637,1768403432400,-500.0,0.00012326,2]
[401912639,1768403432411,-392.35012258,0.00012326,2]
[401912641,1768403432421,-500.0,0.00012326,2]
[401912643,1768403432430,-500.0,0.00012326,2]
[401912644,1768403432440,-636.80878574,0.00012326,2]
[401912646,1768403432449,-500.0,0.00012326,2]
[401912648,1768403432459,-500.0,0.00012326,2]
[401912649,1768403432468,-500.0,0.00012326,2]
[401912650,1768403432477,-500.0,0.00012326,2]
[401912651,1768403432486,-500.0,0.00012326,2]
[401912652,1768403432496,-500.0,0.00012326,2]
[401912653,1768403432505,-500.0,0.00012326,2]
[401912654,1768403432515,-500.0,0.00012326,2]
[401912655,1768403432524,-500.0,0.00012326,2]
[401912656,1768403432534,-500.0,0.00012326,2]
[401912657,1768403432544,-500.0,0.00012326,2]
[401912658,1768403432554,-500.0,0.00012326,2]
[401912659,1768403432564,-500.0,0.00012326,2]
[401912660,1768403432573,-500.0,0.00012326,2]
[401912661,1768403432583,-500.0,0.00012326,2]
[401912662,1768403432593,-500.0,0.00012326,2]
[401912663,1768403432605,-500.0,0.00012326,2]
[401912664,1768403432615,-500.0,0.00012326,2]
[401912665,1768403432624,-500.0,0.00012326,2]
[401912666,1768403432633,-500.0,0.00012326,2]
[401912667,1768403432643,-500.0,0.00012326,2]
[401912668,1768403432652,-500.0,0.00012326,2]
[401912669,1768403432661,-500.0,0.00012326,2]
[401912670,1768403432671,-500.0,0.00012326,2]
[401912671,1768403432680,-500.0,0.00012326,2]
[401912672,1768403432690,-500.0,0.00012326,2]
[401912673,1768403432699,-500.0,0.00012326,2]
[401912674,1768403432708,-500.0,0.00012326,2]
[401912675,1768403432718,-500.0,0.00012326,2]
[401912676,1768403432727,-500.0,0.00012326,2]
[401912677,1768403432737,-500.0,0.00012326,2]
[401912678,1768403432747,-500.0,0.00012326,2]
[401912679,1768403432758,-500.0,0.00012326,2]
[401912680,1768403432767,-500.0,0.00012326,2]
[401912681,1768403432776,-500.0,0.00012326,2]
[401912682,1768403432785,-500.0,0.00012326,2]
[401912683,1768403432794,-500.0,0.00012326,2]
[401912684,1768403432803,-500.0,0.00012326,2]
[401912685,1768403432813,-500.0,0.00012326,2]
[401912686,1768403432823,-500.0,0.00012326,2]
[401912687,1768403432832,-500.0,0.00012326,2]
[401912688,1768403432841,-500.0,0.00012326,2]
[401912689,1768403432850,-500.0,0.00012326,2]
[401912690,1768403432864,-500.0,0.00012326,2]
[401912691,1768403432874,-500.0,0.00012326,2]
[401912692,1768403432883,-500.0,0.00012326,2]
[401912693,1768403432893,-500.0,0.00012326,2]
[401912694,1768403432903,-500.0,0.00012326,2]
[401912695,1768403432912,-500.0,0.00012326,2]
[401912696,1768403432922,-500.0,0.00012326,2]
[401912697,1768403432932,-500.0,0.00012326,2]
[401912698,1768403432941,-500.0,0.00012326,2]
[401912699,1768403432951,-500.0,0.00012326,2]
[401912700,1768403432960,-500.0,0.00012326,2]
[401912701,1768403432969,-500.0,0.00012326,2]
[401912702,1768403432979,-500.0,0.00012326,2]
[401912703,1768403432989,-526.89249482,0.00012326,2]
[401912704,1768403432999,-500.0,0.00012326,2]
[401912705,1768403433013,-500.0,0.00012326,2]
[401912706,1768403433023,-500.0,0.00012326,2]
[401912707,1768403433034,-500.0,0.00012326,2]
[401912708,1768403433044,-500.0,0.00012326,2]
[401912709,1768403433054,-500.0,0.00012326,2]
[401912710,1768403433064,-500.0,0.00012326,2]
[401912711,1768403433074,-500.0,0.00012326,2]
[401912712,1768403433084,-500.0,0.00012326,2]
[401912713,1768403433094,-500.0,0.00012326,2]
[401912714,1768403433106,-500.0,0.00012326,2]
[401912715,1768403433116,-500.0,0.00012326,2]
[401912716,1768403433126,-500.0,0.00012326,2]
[401912717,1768403433135,-500.0,0.00012326,2]
[401912718,1768403433145,-500.0,0.00012326,2]
[401912719,1768403433155,-500.0,0.00012326,2]
[401912720,1768403433164,-500.0,0.00012326,2]
[401912721,1768403433173,-500.0,0.00012326,2]
[401912722,1768403433182,-500.0,0.00012326,2]
[401912723,1768403433192,-500.0,0.00012326,2]
[401912724,1768403433202,-500.0,0.00012326,2]
[401912725,1768403433212,-500.0,0.00012326,2]
[401912726,1768403433223,-500.0,0.00012326,2]
[401912727,1768403433232,-500.0,0.00012326,2]
[401912728,1768403433242,-500.0,0.00012326,2]
[401912729,1768403433253,-500.0,0.00012326,2]
[401912730,1768403433262,-500.0,0.00012326,2]
[401912731,1768403433272,-502.29483015,0.00012326,2]
[401912732,1768403433282,-500.0,0.00012326,2]
[401912733,1768403433291,-500.0,0.00012326,2]
[401912734,1768403433301,-500.0,0.00012326,2]
[401912735,1768403433311,-500.0,0.00012326,2]
[401912736,1768403433324,-500.0,0.00012326,2]
[401912737,1768403433335,-500.0,0.00012326,2]
[401912738,1768403433344,-450.0,0.00012326,2]
[401912739,1768403433359,-500.0,0.00012326,2]
[401912740,1768403433371,-500.0,0.00012326,2]
[401912741,1768403433380,-500.0,0.00012326,2]
[401912742,1768403433390,-500.0,0.00012326,2]
[401912743,1768403433401,-500.0,0.00012326,2]
[401912744,1768403433410,-500.0,0.00012326,2]
[401912745,1768403433420,-500.0,0.00012326,2]
[401912746,1768403433431,-500.0,0.00012326,2]
[401912747,1768403433441,-500.0,0.00012326,2]
[401912748,1768403433452,-500.0,0.00012326,2]
[401912749,1768403433464,-500.0,0.00012326,2]
[401912750,1768403433474,-200.0,0.00012326,2]
[401912751,1768403433484,-500.0,0.00012326,2]
[401912752,1768403433493,-500.0,0.00012326,2]
[401912753,1768403433503,-500.0,0.00012326,2]
[401912754,1768403433514,-500.0,0.00012326,2]
[401912755,1768403433524,-500.0,0.00012326,2]
[401912756,1768403433534,-500.0,0.00012326,2]
[401912757,1768403433543,-500.0,0.00012326,2]
[401912758,1768403433553,-500.0,0.00012326,2]
[401912759,1768403433562,-500.0,0.00012327,2]
[401912760,1768403433572,-21860.058159,0.00012327,2]
[401912761,1768403433586,-28139.941841,0.00012327,2]
[401912762,1768403433597,-500.0,0.00012329,2]
[401912763,1768403433610,-500.0,0.00012329,2]
[401912764,1768403433620,-500.0,0.00012329,2]
[401912765,1768403433630,-500.0,0.00012329,2]
[401912766,1768403433639,-500.0,0.00012329,2]
[401912767,1768403433649,-256.29,0.00012329,2]
[401912768,1768403433659,-213.57,0.00012329,2]
[401912769,1768403433669,-177.98,0.00012329,2]
[401912770,1768403433679,-889.91,0.00012329,2]
[401912771,1768403433689,-500.0,0.00012329,2]
[401912772,1768403433703,-500.0,0.00012329,2]
[401912773,1768403433713,-500.0,0.00012329,2]
[401912774,1768403433723,-494.76318263,0.00012329,2]
[401912775,1768403433732,-300.0,0.00012574,2]
[401912776,1768403433742,-300.0,0.00012574,2]
[401912777,1768403433751,-300.0,0.00012574,2]
[401912778,1768403433760,-300.0,0.00012574,2]
[401912779,1768403433770,-300.0,0.00012574,2]
[401912780,1768403433779,-300.0,0.00012574,2]
[401912781,1768403433788,-300.0,0.00012574,2]
[401912782,1768403433798,-300.0,0.00012574,2]
[401912783,1768403433807,-300.0,0.00012574,2]
[401912784,1768403433817,-300.0,0.00012574,2]
[401912785,1768403433827,-300.0,0.00012574,2]
[401912786,1768403433837,-300.0,0.00012574,2]
[401912787,1768403433846,-300.0,0.00012574,2]
[401912788,1768403433857,-300.0,0.00012574,2]
[401912789,1768403433866,-300.0,0.00012574,2]
[401912790,1768403433875,-500.0,0.00012601,2]
[401912791,1768403433885,-600.0,0.00012824,2]
[401912792,1768403433895,-278.58612381,0.00012875,2]
[401912793,1768403433905,-1000.0,0.00013273,2]
[401912794,1768403433915,-641.90388217,0.00013273,2]
[401912795,1768403433925,-500.0,0.00013273,2]
[401912796,1768403433935,-500.0,0.00013273,2]
[401912797,1768403433945,-500.0,0.00013273,2]
[401912798,1768403433955,-500.0,0.00013273,2]
[401912799,1768403433964,-53998.78053811,0.0001328,2]
[401912800,1768403433976,-615.88288869,0.0001328,2]
[401912816,1768403438088,-223.45310409,0.00012325,2]
[401912817,1768403438098,-27764.78851931,0.0001328,2]
[401912818,1768403438133,-472.34343109,0.0001328,2]
[401912819,1768403438146,-183277.2587533,0.0001328,2]
[401912820,1768403438156,-328.41245743,0.00013405,2]
[401912821,1768403438165,-420.0,0.00013526,2]
[401912822,1768403438175,-420.0,0.00013526,2]
[401912823,1768403438185,-1200.0,0.00013556,2]
[401912824,1768403438195,-268.0,0.00013558,2]
[401912825,1768403438204,-161.93217431,0.00013699,2]
[401912826,1768403438213,-500.0,0.00013699,2]
[401912827,1768403438223,-500.0,0.00013699,2]
[401912828,1768403438233,-500.0,0.00013699,2]
[401912829,1768403438243,-500.0,0.00013699,2]
[401912830,1768403438252,-500.0,0.00013699,2]
[401912831,1768403438263,-500.0,0.00013699,2]
[401912832,1768403438272,-500.0,0.00013699,2]
[401912833,1768403438281,-500.0,0.00013699,2]
[401912834,1768403438291,-500.0,0.00013699,2]
[401912835,1768403438301,-500.0,0.00013699,2]
[401912836,1768403438310,-500.0,0.00013699,2]
[401912837,1768403438320,-500.0,0.00013699,2]
[401912838,1768403438331,-500.0,0.00013699,2]
[401912839,1768403438344,-172.03885766,0.00013699,2]
[401912840,1768403438354,-500.0,0.00013821,2]
[401912841,1768403438368,-927.2997855,0.00013821,2]
[401912842,1768403438378,-465.81779273,0.00013821,2]
[401912843,1768403438387,-170.16316784,0.00013821,2]
[401912844,1768403438397,-78875.7224843,0.00013875,2]
[401912845,1768403438406,-720.0,0.00014107,2]
[401912846,1768403438414,-726.57,0.00014147,2]
[401912847,1768403438424,-500.0,0.00014247,2]
[401912848,1768403438433,-1000.0,0.00014247,2]
[401912849,1768403438442,-500.0,0.00014247,2]
[401912850,1768403438451,-250.0,0.00014247,2]
[401912851,1768403438461,-500.0,0.00014247,2]
[401912852,1768403438470,-1000.0,0.00014247,2]
[401912853,1768403438479,-1000.0,0.00014247,2]
[401912854,1768403438489,-500.0,0.00014247,2]
[401912855,1768403438498,-1000.0,0.00014247,2]
[401912856,1768403438508,-1000.00562213,0.00014247,2]
[401912857,1768403438518,-1327.18339138,0.0001451,2]
[401912858,1768403438535,-1451.86588583,0.0001451,2]
[401912859,1768403438547,-1197.57370402,0.0001451,2]
[401912860,1768403438559,-1023.37701877,0.0001451,2]
[401912861,1768403438569,-500.0,0.00014795,2]
[401912862,1768403438578,-640.95571878,0.00014795,2]
[401912863,1768403438588,-1500.0,0.00014795,2]
[401912864,1768403438597,-500.0,0.00014795,2]
[401912865,1768403438607,-180.0,0.00014843,2]
[401912866,1768403438620,-180.0,0.00014843,2]
[401912867,1768403438629,-151.48350527,0.000149,2]
[401912868,1768403438639,-250.0,0.00014968,2]
[401912869,1768403438649,-500.0,0.00015103,2]
[401912870,1768403438658,-1000.0,0.00015342,2]
[401912871,1768403438668,-889.9083895,0.0001537,2]
[401912872,1768403438677,-398.30808682,0.000154,2]
[401912873,1768403438686,-241.4467798,0.000154,2]
[401912874,1768403438695,-555.8001956,0.000154,2]
[401912875,1768403438705,-185.26673185,0.000154,2]
[401912876,1768403438714,-199.15404338,0.000154,2]
[401912877,1768403438723,-378.50927297,0.00015405,2]
[401912878,1768403438733,-864.0,0.00015518,2]
[401912879,1768403438742,-398.30808682,0.00016096,9]
[401912880,1768403438752,-555.8001956,0.00016096,9]
[401912881,1768403438761,-500.0,0.00016438,2]
[401912882,1768403438771,-404.97401597,0.00016438,2]
[401912883,1768403438780,-500.0,0.00016438,2]
[401912884,1768403438789,-241.4467798,0.00016792,17]
[401912885,1768403438798,-398.30808682,0.00016792,17]
[401912886,1768403438808,-555.8001956,0.00016792,17]
[401912887,1768403438817,-1000.0,0.00017069,2]
[401912888,1768403438830,-1041.66666667,0.00017305,2]
[401912889,1768403438841,-428.60608851,0.00017405,2]
[401912890,1768403438851,-5000.0,0.00017412,2]
[401912891,1768403438862,-398.30808682,0.00017489,25]
[401912892,1768403438872,-555.8001956,0.00017489,25]
[401912893,1768403438881,-241.4467798,0.00018185,32]
[401912894,1768403438891,-555.8001956,0.00018185,32]
[401912895,1768403438900,-398.30808682,0.00018185,32]
[401912896,1768403438910,-296.0,0.00018518,2]
[401912897,1768403438919,-368.0,0.00018715,2]
[401912898,1768403438929,-1000.0,0.00018776,2]
[401912899,1768403438939,-244.0,0.00018776,2]
[401912900,1768403438949,-3168.48418426,0.00018863,2]
[401912901,1768403438958,-555.8001956,0.00018881,40]
[401912902,1768403438967,-398.30808682,0.00018881,40]
[401912903,1768403438977,-473.0,0.00018882,2]
[401912904,1768403438986,-303.10001605,0.000189,2]
[401912905,1768403438996,-150.1,0.00019178,2]
[401912906,1768403439005,-151.61,0.000192,2]
[401912907,1768403439015,-152.82,0.000192,2]
[401912908,1768403439024,-636.95,0.000192,2]
[401912909,1768403439033,-168.3888056,0.00019362,2]
[401912910,1768403439042,-174.61919141,0.00019362,2]
[401912911,1768403439052,-181.08010149,0.00019362,2]
[401912912,1768403439062,-2681.8732628,0.00019362,2]
[401912913,1768403439071,-187.78006525,0.00019362,2]
[401912914,1768403439080,-194.72792766,0.00019362,2]
[401912915,1768403439090,-201.93286099,0.00019362,2]
[401912916,1768403439100,-209.40437684,0.00019362,2]
[401912917,1768403439109,-217.15233878,0.00019362,2]
[401912918,1768403439119,-225.18697532,0.00019362,2]
[401912919,1768403439130,-233.51889341,0.00019362,2]
[401912920,1768403439139,-242.15909246,0.00019362,2]
[401912921,1768403439149,-251.11897888,0.00019362,2]
[401912922,1768403439159,-260.4103811,0.00019362,2]
[401912923,1768403439169,-270.0455652,0.00019362,2]
[401912924,1768403439179,-280.03725112,0.00019362,2]
[401912925,1768403439190,-290.39862941,0.00019362,2]
[401912926,1768403439200,-301.1433787,0.00019362,2]
[401912927,1768403439210,-478.70290405,0.00019405,2]
[401912928,1768403439220,-241.4467798,0.00019577,48]
[401912929,1768403439229,-555.8001956,0.00019577,48]
[401912930,1768403439238,-398.30808682,0.00019577,48]
[401912931,1768403439247,-555.8001956,0.00020273,56]
[401912932,1768403439256,-398.30808682,0.00020273,56]
[401912933,1768403439265,-185.26673185,0.00020273,56]
[401912934,1768403439275,-1000.0,0.00020654,2]
[401912935,1768403439285,-492.0,0.00020654,2]
[401912936,1768403439295,-436.72021913,0.00020723,2]
[401912937,1768403439304,-241.4467798,0.00020969,63]
[401912938,1768403439314,-555.8001956,0.00020969,63]
[401912939,1768403439325,-398.30808682,0.00020969,63]
[401912940,1768403439337,-5443.264386,0.00021,2]
[401912941,1768403439347,-528.79971959,0.00021405,2]
[401912942,1768403439356,-555.8001956,0.00021666,71]
[401912943,1768403439368,-398.30808682,0.00021666,71]
[401912944,1768403439379,-180.12969338,0.00022102,2]
[401912945,1768403439388,-355.56,0.000222,7]
[401912946,1768403439398,-241.4467798,0.00022362,79]
[401912947,1768403439408,-555.8001956,0.00022362,79]
[401912948,1768403439418,-398.30808682,0.00022362,79]
[401912949,1768403439428,-1000.0,0.00022719,10]
[401912950,1768403439437,-791.0,0.00022719,10]
[401912951,1768403439446,-555.8001956,0.00023058,86]
[401912952,1768403439455,-398.30808682,0.00023058,86]
[401912953,1768403439465,-498.73273934,0.00023319,2]
[401912954,1768403439474,-1994.93095737,0.00023319,2]
[401912955,1768403439483,-4488.59465409,0.00023319,2]
[401912956,1768403439493,-7971.74410567,0.00023319,2]
[401912957,1768403439502,-578.89653513,0.00023405,2]
[401912958,1768403439511,-241.4467798,0.00023754,94]
[401912959,1768403439522,-555.8001956,0.00023754,94]
[401912960,1768403439532,-398.30808682,0.00023754,94]
[401912961,1768403439542,-636.95,0.000239,14]
[401912962,1768403439552,-2738.0599079,0.00023948,2]
[401912963,1768403439561,-50274.59897216,0.0002399,2]
[401913169,1768403444199,-292.0,0.00019788,2]
[401913172,1768403444209,-154.0,0.000198,3]
[401913173,1768403444218,-277.135,0.0002099,10]
[401913175,1768403444228,-10600.10452621,0.0002099,10]
[401913266,1768403445883,-361.0,0.00019948,2]
[401913267,1768403445892,-430.2784889,0.0002099,10]
[401913268,1768403445904,-3845.15198489,0.0002099,10]
[401913269,1768403445913,-3586.5954007,0.0002399,2]
[401913270,1768403445928,-823.0,0.0002399,2]
[401913271,1768403445969,-35987.60165002,0.0002399,2]
[401913278,1768403446082,-9328.20397712,0.0002399,2]
[401913280,1768403446092,-782.55672292,0.00024048,2]
[401913282,1768403446102,-3130.22689169,0.00024048,2]
[401913284,1768403446111,-207.63531496,0.00024048,2]
[401913286,1768403446124,-151.0,0.000242,7]
[401913288,1768403446133,-151.0,0.00024241,2]
[401913290,1768403446142,-555.8001956,0.0002445,102]
[401913292,1768403446152,-398.30808682,0.0002445,102]
[401913294,1768403446161,-218.0,0.00024466,13]
[401913296,1768403446170,-7035.9674958,0.0002449,2]
[401913297,1768403446179,-621.68848818,0.0002454,2]
[401913299,1768403446189,-1067.99041022,0.00024546,2]
[401913301,1768403446198,-4267.68967925,0.00024546,2]
[401913303,1768403446207,-829.7107186,0.00024637,2]
[401913305,1768403446216,-380.0,0.00024658,2]
[401913307,1768403446225,-5000.0,0.00024768,2]
[401913308,1768403446234,-300.613652,0.00024872,2]
[401913309,1768403446243,-4701.55,0.000249,2]
[401913310,1768403446253,-95781.9468845,0.000249,2]
[401913311,1768403446262,-249.0,0.00024932,7]
[401913313,1768403446271,-4124.53425729,0.00024932,7]
[401913314,1768403446281,-629.0,0.00024959,2]
[401913315,1768403446290,-1000.0,0.00024991,10]
[401913316,1768403446300,-1000.0,0.00024991,10]
[401913317,1768403446309,-2763.956063,0.00024998,2]
[401913318,1768403446318,-664.6075934,0.00024998,2]
[401913319,1768403446327,-355.56,0.00025,7]
[401913320,1768403446339,-249.0,0.00025,7]
[401913321,1768403446348,-241.4467798,0.00025146,110]
[401913322,1768403446358,-199.15404338,0.00025146,110]
[401913323,1768403446369,-185.26673185,0.00025146,110]
[401913324,1768403446380,-417.0,0.00025159,2]
[401913325,1768403446390,-417.0,0.00025159,2]
[401913326,1768403446400,-262.64966449,0.00025205,2]
[401913327,1768403446410,-252.0,0.00025223,120]
[401913328,1768403446419,-169.0,0.00025228,120]
[401913329,1768403446428,-5748.969032,0.00025228,30]
[401913330,1768403446438,-169.0,0.00025233,120]
[401913331,1768403446447,-169.0,0.0002524,120]
[401913332,1768403446456,-628.99335067,0.00025405,2]
[401913333,1768403446466,-2738.05990788,0.0002547,2]
[401913334,1768403446475,-11972.7433606,0.00025558,2]
[401913335,1768403446485,-151.0,0.00025616,2]
[401913336,1768403446494,-2617.53612397,0.00025728,2]
[401913337,1768403446503,-160.0,0.00025761,3]
[401913339,1768403446513,-636.95,0.000258,14]
[401913341,1768403446523,-151.0,0.000258,12]
[401913343,1768403446532,-249.0,0.0002589,7]
[401913345,1768403446541,-154.0,0.000259,13]
[401913347,1768403446550,-19003.81912209,0.00026,2]
[401913453,1768403951142,175.85,9.442e-05,2]
[401913502,1768404632503,-164.042,0.00011669,2]
[401913503,1768404632513,-584.0,0.00011669,2]
[401913504,1768404632523,-366.2480884,0.0001167,2]
[401913505,1768404632532,-210.17044481,0.00011949,2]
[401913506,1768404632541,-0.98840259,0.00012465,2]
[401913542,1768404638302,-155.42877027,0.00012465,2]
[401913543,1768404638313,-237.42319842,0.00012465,2]
[401913544,1768404638322,-500.0,0.00012465,2]
[401913545,1768404638333,-500.0,0.00012465,2]
[401913546,1768404638342,-221.64035363,0.00012465,2]
[401913547,1768404638351,-155.50062125,0.00012465,2]
[401913548,1768404638361,-201.51801387,0.00012465,2]
[401913549,1768404638373,-298.48198613,0.00012465,2]
[401913550,1768404638382,-500.0,0.00012465,2]
[401913551,1768404638391,-500.0,0.00012465,2]
[401913552,1768404638401,-500.0,0.00012465,2]
[401913553,1768404638410,-500.0,0.00012465,2]
[401913554,1768404638426,-522.68924948,0.00012465,2]
[401913555,1768404638439,-500.0,0.00012465,2]
[401913556,1768404638448,-500.0,0.00012465,2]
[401913557,1768404638458,-500.0,0.00012465,2]
[401913558,1768404638468,-500.0,0.00012465,2]
[401913559,1768404638477,-500.0,0.00012465,2]
[401913560,1768404638487,-595.22948301,0.00012465,2]
[401913561,1768404638496,-719.66343862,0.00012466,2]
[401913562,1768404638509,-436.356,0.00012466,2]
[401913563,1768404638536,-46478.89985583,0.00012466,2]
[401913564,1768404638546,-300.0,0.00012471,2]
[401913565,1768404638555,-300.0,0.00012471,2]
[401913566,1768404638565,-300.0,0.00012471,2]
[401913567,1768404638574,-300.0,0.00012471,2]
[401913568,1768404638584,-300.0,0.00012471,2]
[401913569,1768404638593,-300.0,0.00012471,2]
[401913570,1768404638603,-300.0,0.00012471,2]
[401913571,1768404638612,-300.0,0.00012471,2]
[401913572,1768404638622,-300.0,0.00012471,2]
[401913573,1768404638632,-300.0,0.00012471,2]
[401913574,1768404638643,-300.0,0.00012471,2]
[401913575,1768404638654,-300.0,0.00012471,2]
[401913576,1768404638663,-300.0,0.00012471,2]
[401913577,1768404638672,-300.0,0.00012471,2]
[401913578,1768404638683,-300.0,0.00012471,2]
[401913579,1768404638693,-157.16330377,0.00013273,2]
[401913580,1768404638702,-500.0,0.00013273,2]
[401913581,1768404638712,-500.0,0.00013699,2]
[401913582,1768404638721,-502.07442824,0.00013821,2]
[401913583,1768404638731,-248.00112487,0.00013949,2]
[401913584,1768404638740,-1000.0,0.00014247,2]
[401913585,1768404638750,-1500.20677072,0.00014795,2]
[401913586,1768404639075,-1751.0,0.000154,15]
[401913587,1768404639085,-250.0,0.00015419,2]
[401913588,1768404639095,-285.83180494,0.00015949,2]
[401913589,1768404639104,-154.0,0.000163,2]
[401913590,1768404639115,-154.0,0.000163,2]
[401913591,1768404639126,-500.0,0.00016438,2]
[401913592,1768404639136,-483.48181118,0.00016438,2]
[401913593,1768404639146,-154.0,0.00017,2]
[401913594,1768404639156,-154.0,0.00017,2]
[401913595,1768404639166,-1041.66666667,0.00017319,2]
[401913596,1768404639176,-154.0,0.000174,2]
[401913597,1768404639185,-154.0,0.000174,2]
[401913598,1768404639195,-323.66248501,0.00017949,2]
[401913599,1768404639205,-10000.0,0.00019,2]
[401913600,1768404639214,-154.0,0.00019,2]
[401913601,1768404639223,-154.0,0.00019,2]
[401913602,1768404639233,-361.49316507,0.00019949,2]
[401913603,1768404639242,-154.81359138,0.0002,2]
[401913604,1768404639252,-200.000001,0.00020726,2]
[401913605,1768404639261,-500.0,0.00020726,2]
[401913606,1768404639270,-500.0,0.00020726,2]
[401913607,1768404639279,-587.0,0.00020726,2]
[401913608,1768404639289,-250.0,0.00020726,2]
[401913609,1768404639298,-500.0,0.00020726,2]
[401913610,1768404639308,-250.0,0.00020726,2]
[401913611,1768404639317,-500.0,0.00020726,2]
[401913612,1768404639326,-500.0,0.00020863,2]
[401913613,1768404639336,-532.05033345,0.00020863,2]
[401913614,1768404639348,-587.0,0.00020863,2]
[401913615,1768404639357,-500.0,0.00020863,2]
[401913616,1768404639366,-500.0,0.00020863,2]
[401913617,1768404639377,-500.0,0.00021,2]
[401913618,1768404639386,-200.0,0.00021,2]
[401913619,1768404639396,-200.0,0.00021,2]
[401913620,1768404639405,-587.0,0.00021,2]
[401913621,1768404639415,-500.0,0.00021,2]
[401913622,1768404639424,-500.0,0.00021,2]
[401913623,1768404639434,-200.0,0.00021137,2]
[401913624,1768404639444,-200.0,0.00021137,2]
[401913625,1768404639453,-587.0,0.00021137,2]
[401913626,1768404639463,-500.0,0.00021137,2]
[401913627,1768404639473,-500.0,0.00021137,2]
[401913628,1768404639482,-250.0,0.00021274,2]
[401913629,1768404639491,-587.0,0.00021274,2]
[401913630,1768404639501,-220.19448082,0.00021274,2]
[401913631,1768404639510,-500.0,0.00021274,2]
[401913632,1768404639520,-172.64534256,0.00021274,2]
[401913633,1768404639530,-150.4763442,0.00021411,2]
[401913634,1768404639540,-194.43910051,0.00021411,2]
[401913635,1768404639551,-587.0,0.00021411,2]
[401913636,1768404639560,-500.0,0.00021411,2]
[401913637,1768404639569,-2309.82047219,0.000215,2]
[401913638,1768404639578,-587.0,0.00021548,2]
[401913639,1768404639588,-500.0,0.00021548,2]
[401913640,1768404639598,-587.0,0.00021685,2]
[401913641,1768404639608,-500.0,0.00021685,2]
[401913642,1768404639618,-587.0,0.00021822,2]
[401913643,1768404639628,-500.0,0.00021822,2]